[Event "*** SCC Grand Prix: Titled Tuesday Blitz"]
[Site "Chess.com"]
[Date "2020.07.07"]
[Round "6"]
[White "chessfrendz"]
[Black "rugbyclub"]
[Result "1-0"]
[WhiteElo "2316"]
[BlackElo "2139"]
[TimeControl "180+1"]
[EndTime "11:03:29 PDT"]
[Termination "chessfrendz won by checkmate"]

1. d4 {[%clk 0:03:00.9]} 1... d5 {[%clk 0:02:50.1]} 2. c4 {[%clk 0:02:58.8]}
2... e6 {[%clk 0:02:49.1]} 3. Nc3 {[%clk 0:02:57]} 3... c6 {[%clk 0:02:47.1]} 4.
e4 {[%clk 0:02:54.5]} 4... dxe4 {[%clk 0:02:46.9]} 5. Nxe4 {[%clk 0:02:53.4]}
5... Bb4+ {[%clk 0:02:44.3]} 6. Bd2 {[%clk 0:02:52.2]} 6... Bxd2+ {[%clk
0:02:37.7]} 7. Qxd2 {[%clk 0:02:51.4]} 7... Nf6 {[%clk 0:02:38.3]} 8. Ng3 {[%clk
0:02:49]} 8... O-O {[%clk 0:02:35.8]} 9. Nf3 {[%clk 0:02:48.6]} 9... c5 {[%clk
0:02:32.9]} 10. O-O-O {[%clk 0:02:47]} 10... cxd4 {[%clk 0:02:32]} 11. Qxd4
{[%clk 0:02:44.2]} 11... Qa5 {[%clk 0:02:30.9]} 12. Kb1 {[%clk 0:02:42.3]} 12...
Nc6 {[%clk 0:02:30.9]} 13. Qh4 {[%clk 0:02:39.6]} 13... b6 {[%clk 0:02:21.8]}
14. Bd3 {[%clk 0:02:38.3]} 14... Ba6 {[%clk 0:02:13.2]} 15. Ne4 {[%clk
0:02:31.5]} 15... Nh5 {[%clk 0:01:42.7]} 16. Neg5 {[%clk 0:02:18.9]} 16... Nb4
{[%clk 0:01:38.8]} 17. Bxh7+ {[%clk 0:02:16]} 17... Kh8 {[%clk 0:01:38.4]} 18.
Qxh5 {[%clk 0:02:05.4]} 18... Qxa2+ {[%clk 0:01:35.9]} 19. Kc1 {[%clk
0:02:05.3]} 19... g6 {[%clk 0:01:25.4]} 20. Bxg6+ {[%clk 0:01:59.4]} 20... Kg7
{[%clk 0:01:25.7]} 21. Qh7+ {[%clk 0:01:49.4]} 21... Kf6 {[%clk 0:01:24]} 22.
Ne4+ {[%clk 0:01:46.8]} 22... Ke7 {[%clk 0:01:21.1]} 23. Qh4+ {[%clk 0:01:46.2]}
23... Ke8 {[%clk 0:01:12.5]} 24. Nf6+ {[%clk 0:01:45.1]} 24... Ke7 {[%clk
0:01:11.5]} 25. Ng8+ {[%clk 0:01:44.8]} 25... Ke8 {[%clk 0:01:09.1]} 26. Qe7#
{[%clk 0:01:44.2]} 1-0

[Event "*** SCC Grand Prix: Titled Tuesday Blitz"]
[Site "Chess.com"]
[Date "2020.07.07"]
[Round "6"]
[White "deribas12345"]
[Black "Godzillator"]
[Result "1-0"]
[WhiteElo "2587"]
[BlackElo "2361"]
[TimeControl "180+1"]
[EndTime "11:03:33 PDT"]
[Termination "deribas12345 won by resignation"]

1. d4 {[%clk 0:01:55.8]} 1... d5 {[%clk 0:02:56.3]} 2. c4 {[%clk 0:01:55.4]}
2... c6 {[%clk 0:02:55.8]} 3. Nf3 {[%clk 0:01:54.8]} 3... Nf6 {[%clk 0:02:55.4]}
4. Nc3 {[%clk 0:01:55.7]} 4... a6 {[%clk 0:02:55.3]} 5. g3 {[%clk 0:01:55.5]}
5... dxc4 {[%clk 0:02:53.9]} 6. Bg2 {[%clk 0:01:54.3]} 6... b5 {[%clk 0:02:54]}
7. O-O {[%clk 0:01:54.5]} 7... Bb7 {[%clk 0:02:54.3]} 8. e4 {[%clk 0:01:54.6]}
8... e6 {[%clk 0:02:54.5]} 9. e5 {[%clk 0:01:54.8]} 9... Nd5 {[%clk 0:02:54.1]}
10. Ne4 {[%clk 0:01:54.7]} 10... Nd7 {[%clk 0:02:52.9]} 11. Bg5 {[%clk
0:01:53.9]} 11... Qc7 {[%clk 0:02:51]} 12. Re1 {[%clk 0:01:54.1]} 12... h6
{[%clk 0:02:50.5]} 13. Bd2 {[%clk 0:01:47.9]} 13... Be7 {[%clk 0:02:49.8]} 14.
g4 {[%clk 0:01:44.3]} 14... Rd8 {[%clk 0:02:34.9]} 15. a4 {[%clk 0:01:40.1]}
15... c5 {[%clk 0:02:30.7]} 16. axb5 {[%clk 0:01:39.3]} 16... cxd4 {[%clk
0:02:28.3]} 17. bxa6 {[%clk 0:01:37.9]} 17... Ba8 {[%clk 0:02:28.3]} 18. Nxd4
{[%clk 0:01:35.4]} 18... Nxe5 {[%clk 0:02:18.6]} 19. Qa4+ {[%clk 0:01:19.1]}
19... Kf8 {[%clk 0:02:02.9]} 20. Ba5 {[%clk 0:01:18.2]} 20... Nb6 {[%clk
0:01:57]} 21. Qb5 {[%clk 0:01:09.4]} 21... Rxd4 {[%clk 0:01:50.8]} 22. Bxb6
{[%clk 0:01:05.8]} 22... Qd7 {[%clk 0:01:48]} 23. Qxe5 {[%clk 0:00:58.2]} 23...
f6 {[%clk 0:01:45.5]} 24. Qxd4 {[%clk 0:00:57.7]} 1-0

[Event "*** SCC Grand Prix: Titled Tuesday Blitz"]
[Site "Chess.com"]
[Date "2020.07.07"]
[Round "6"]
[White "AungTZ"]
[Black "Julianos82"]
[Result "0-1"]
[WhiteElo "2109"]
[BlackElo "2257"]
[TimeControl "180+1"]
[EndTime "11:03:35 PDT"]
[Termination "Julianos82 won by resignation"]

1. e4 {[%clk 0:02:54.2]} 1... c5 {[%clk 0:02:59.2]} 2. Nf3 {[%clk 0:02:53.3]}
2... b6 {[%clk 0:02:59.2]} 3. d4 {[%clk 0:02:52.1]} 3... cxd4 {[%clk 0:03:00.1]}
4. Nxd4 {[%clk 0:02:52.6]} 4... Bb7 {[%clk 0:03:00.7]} 5. Nc3 {[%clk 0:02:53]}
5... a6 {[%clk 0:03:01]} 6. a4 {[%clk 0:02:52.4]} 6... e6 {[%clk 0:03:00.8]} 7.
Be2 {[%clk 0:02:51.6]} 7... Qc7 {[%clk 0:03:00.2]} 8. Be3 {[%clk 0:02:51.3]}
8... Nf6 {[%clk 0:03:00.2]} 9. f3 {[%clk 0:02:50.7]} 9... Bc5 {[%clk 0:02:54]}
10. Qd2 {[%clk 0:02:44]} 10... Nc6 {[%clk 0:02:51]} 11. a5 {[%clk 0:02:37.2]}
11... O-O {[%clk 0:02:41.2]} 12. axb6 {[%clk 0:02:32.3]} 12... Bxb6 {[%clk
0:02:40.8]} 13. O-O {[%clk 0:02:14.8]} 13... d5 {[%clk 0:02:34.2]} 14. Nxc6
{[%clk 0:02:09.5]} 14... Bxc6 {[%clk 0:02:25.6]} 15. e5 {[%clk 0:01:52.2]} 15...
Nd7 {[%clk 0:02:14.5]} 16. f4 {[%clk 0:01:48.5]} 16... Qa7 {[%clk 0:02:11.5]}
17. Bxb6 {[%clk 0:01:47.4]} 17... Qxb6+ {[%clk 0:02:12.4]} 18. Kh1 {[%clk
0:01:47.5]} 18... Nc5 {[%clk 0:02:08.4]} 19. b3 {[%clk 0:01:43.4]} 19... d4
{[%clk 0:01:59.5]} 20. Qxd4 {[%clk 0:01:40]} 20... Rfd8 {[%clk 0:01:58.5]} 21.
Qe3 {[%clk 0:01:35.5]} 21... Qb4 {[%clk 0:01:44.7]} 22. Bxa6 {[%clk 0:01:06]}
0-1

[Event "*** SCC Grand Prix: Titled Tuesday Blitz"]
[Site "Chess.com"]
[Date "2020.07.07"]
[Round "6"]
[White "zaur-mammadov"]
[Black "rynos0411"]
[Result "1-0"]
[WhiteElo "2599"]
[BlackElo "2437"]
[TimeControl "180+1"]
[EndTime "11:03:41 PDT"]
[Termination "zaur-mammadov won by resignation"]

1. e4 {[%clk 0:03:00.9]} 1... c6 {[%clk 0:02:58.6]} 2. Nc3 {[%clk 0:03:00]} 2...
d5 {[%clk 0:02:59.5]} 3. Nf3 {[%clk 0:03:00.3]} 3... dxe4 {[%clk 0:02:59.4]} 4.
Nxe4 {[%clk 0:03:01.2]} 4... Nf6 {[%clk 0:03:00]} 5. Qe2 {[%clk 0:03:01.7]} 5...
Bf5 {[%clk 0:02:57.5]} 6. Nxf6+ {[%clk 0:03:01.1]} 6... gxf6 {[%clk 0:02:57.6]}
7. d3 {[%clk 0:03:01.7]} 7... Nd7 {[%clk 0:02:54.7]} 8. g3 {[%clk 0:03:01.9]}
8... e6 {[%clk 0:02:48.3]} 9. Bg2 {[%clk 0:03:02.2]} 9... Bd6 {[%clk 0:02:40.9]}
10. Bd2 {[%clk 0:03:02.2]} 10... Qc7 {[%clk 0:02:41.3]} 11. O-O-O {[%clk
0:03:01.7]} 11... O-O-O {[%clk 0:02:40.8]} 12. Nh4 {[%clk 0:03:01.8]} 12... Bg6
{[%clk 0:02:39.6]} 13. f4 {[%clk 0:03:02.4]} 13... Rde8 {[%clk 0:02:34]} 14. Bc3
{[%clk 0:03:00.8]} 14... h5 {[%clk 0:02:30.1]} 15. Rde1 {[%clk 0:02:49.2]} 15...
Bxf4+ {[%clk 0:02:28.9]} 16. Kb1 {[%clk 0:02:06]} 16... Be5 {[%clk 0:02:27.2]}
17. d4 {[%clk 0:02:02.8]} 17... Bd6 {[%clk 0:02:27.4]} 18. Rhf1 {[%clk
0:01:58.7]} 18... c5 {[%clk 0:02:17.4]} 19. dxc5 {[%clk 0:01:55.1]} 19... Nxc5
{[%clk 0:02:06.3]} 20. Nxg6 {[%clk 0:01:41.8]} 20... fxg6 {[%clk 0:02:05.6]} 21.
Rxf6 {[%clk 0:01:41.2]} 21... Rhg8 {[%clk 0:02:03.1]} 22. Ref1 {[%clk
0:01:39.1]} 22... Na4 {[%clk 0:02:01.6]} 23. Bd4 {[%clk 0:01:35.4]} 23... Bc5
{[%clk 0:01:43.9]} 24. Rf7 {[%clk 0:01:25.1]} 24... Re7 {[%clk 0:01:41.7]} 25.
Rxe7 {[%clk 0:01:15.7]} 25... Qxe7 {[%clk 0:01:40.5]} 26. Bf6 {[%clk 0:01:16.1]}
26... Qc7 {[%clk 0:01:30.4]} 27. Qxe6+ {[%clk 0:01:12.9]} 1-0

[Event "*** SCC Grand Prix: Titled Tuesday Blitz"]
[Site "Chess.com"]
[Date "2020.07.07"]
[Round "6"]
[White "GrafLermontov"]
[Black "politeplayer"]
[Result "0-1"]
[WhiteElo "2472"]
[BlackElo "2260"]
[TimeControl "180+1"]
[EndTime "11:03:50 PDT"]
[Termination "politeplayer won by resignation"]

1. d4 {[%clk 0:03:00.9]} 1... d5 {[%clk 0:02:59.1]} 2. c4 {[%clk 0:03:01.3]}
2... e6 {[%clk 0:02:59.5]} 3. Nc3 {[%clk 0:03:01.3]} 3... c5 {[%clk 0:02:59.9]}
4. cxd5 {[%clk 0:03:00.8]} 4... exd5 {[%clk 0:02:59.9]} 5. Nf3 {[%clk
0:03:00.8]} 5... Nc6 {[%clk 0:03:00.3]} 6. g3 {[%clk 0:03:01]} 6... Nf6 {[%clk
0:03:00.7]} 7. Bg2 {[%clk 0:03:01]} 7... Be7 {[%clk 0:03:01.2]} 8. O-O {[%clk
0:03:00.8]} 8... O-O {[%clk 0:03:01.6]} 9. Bg5 {[%clk 0:02:59.8]} 9... cxd4
{[%clk 0:03:00.6]} 10. Nxd4 {[%clk 0:02:58.8]} 10... h6 {[%clk 0:03:00.8]} 11.
Be3 {[%clk 0:02:56.1]} 11... Re8 {[%clk 0:02:59.8]} 12. Qd2 {[%clk 0:02:49.7]}
12... Bb4 {[%clk 0:02:58.4]} 13. Rfd1 {[%clk 0:02:42.4]} 13... Bg4 {[%clk
0:02:52.1]} 14. h3 {[%clk 0:02:38.6]} 14... Nxd4 {[%clk 0:02:38.8]} 15. Qxd4
{[%clk 0:02:18]} 15... Bxc3 {[%clk 0:02:33.5]} 16. Qxc3 {[%clk 0:02:07.4]} 16...
Bxe2 {[%clk 0:02:31.1]} 17. Rd2 {[%clk 0:02:07.1]} 17... Rc8 {[%clk 0:02:24.1]}
18. Qb3 {[%clk 0:02:02.3]} 18... Bc4 {[%clk 0:02:04.8]} 19. Qxb7 {[%clk
0:01:55.8]} 19... Rc7 {[%clk 0:01:55.3]} 20. Qb4 {[%clk 0:01:50.6]} 20... Ne4
{[%clk 0:01:49]} 21. Bxe4 {[%clk 0:01:38.4]} 21... Rxe4 {[%clk 0:01:47.3]} 22.
Rad1 {[%clk 0:01:39]} 22... Qc8 {[%clk 0:01:29.4]} 23. Kg2 {[%clk 0:01:04.8]}
23... Bf1+ {[%clk 0:01:25.9]} 0-1

[Event "*** SCC Grand Prix: Titled Tuesday Blitz"]
[Site "Chess.com"]
[Date "2020.07.07"]
[Round "6"]
[White "Th3_Hound"]
[Black "NiranjanNavalgund"]
[Result "1-0"]
[WhiteElo "2529"]
[BlackElo "2398"]
[TimeControl "180+1"]
[EndTime "11:03:51 PDT"]
[Termination "Th3_Hound won by checkmate"]

1. e4 {[%clk 0:03:00.9]} 1... g6 {[%clk 0:02:58.8]} 2. d4 {[%clk 0:03:00.5]}
2... Bg7 {[%clk 0:02:59.7]} 3. Nf3 {[%clk 0:02:58.5]} 3... d6 {[%clk 0:02:57.4]}
4. Nc3 {[%clk 0:02:55.8]} 4... Nc6 {[%clk 0:02:56.6]} 5. h3 {[%clk 0:02:49.1]}
5... e5 {[%clk 0:02:57.5]} 6. d5 {[%clk 0:02:48]} 6... Nce7 {[%clk 0:02:56.9]}
7. a4 {[%clk 0:02:37.4]} 7... h6 {[%clk 0:02:57.8]} 8. Nd2 {[%clk 0:02:36.3]}
8... f5 {[%clk 0:02:49.4]} 9. Bd3 {[%clk 0:02:34]} 9... Nf6 {[%clk 0:02:49]} 10.
a5 {[%clk 0:02:28.5]} 10... a6 {[%clk 0:02:46.7]} 11. O-O {[%clk 0:02:26.8]}
11... O-O {[%clk 0:02:44.6]} 12. f3 {[%clk 0:02:23.2]} 12... Nh5 {[%clk
0:02:43.1]} 13. Nc4 {[%clk 0:02:22.1]} 13... f4 {[%clk 0:02:40.8]} 14. b4 {[%clk
0:02:12.9]} 14... Kh7 {[%clk 0:02:41]} 15. b5 {[%clk 0:02:13]} 15... Ng8 {[%clk
0:02:41]} 16. b6 {[%clk 0:02:13.2]} 16... Bf6 {[%clk 0:02:37.3]} 17. Ba3 {[%clk
0:02:07.2]} 17... Be7 {[%clk 0:02:30.3]} 18. bxc7 {[%clk 0:02:04.4]} 18... Qxc7
{[%clk 0:02:29.5]} 19. Nb6 {[%clk 0:02:04.9]} 19... Qxc3 {[%clk 0:02:28.1]} 20.
Nxa8 {[%clk 0:02:04.8]} 20... Qd4+ {[%clk 0:02:25.8]} 21. Kh2 {[%clk 0:02:03.4]}
21... Bh4 {[%clk 0:02:25.8]} 22. Nb6 {[%clk 0:02:01.7]} 22... Bg3+ {[%clk
0:02:25.8]} 23. Kh1 {[%clk 0:02:02]} 23... Bxh3 {[%clk 0:02:22.6]} 24. c3 {[%clk
0:01:56]} 24... Qe3 {[%clk 0:02:22]} 25. Ra2 {[%clk 0:01:43.2]} 25... Bh4 {[%clk
0:02:15]} 26. gxh3 {[%clk 0:01:42.3]} 26... Ng3+ {[%clk 0:02:15]} 27. Kg2 {[%clk
0:01:42]} 27... Nxf1 {[%clk 0:02:14.8]} 28. Qxf1 {[%clk 0:01:35.4]} 28... Nf6
{[%clk 0:02:07.6]} 29. Qd1 {[%clk 0:01:22.1]} 29... Qe1 {[%clk 0:02:00.4]} 30.
Qxe1 {[%clk 0:01:20.9]} 30... Bxe1 {[%clk 0:02:01.3]} 31. Bxd6 {[%clk
0:01:21.2]} 31... Rf7 {[%clk 0:01:59.1]} 32. Bxe5 {[%clk 0:01:21.4]} 32... Ne8
{[%clk 0:01:58.6]} 33. d6 {[%clk 0:01:21.3]} 33... Bh4 {[%clk 0:01:58.1]} 34. d7
{[%clk 0:01:21.1]} 34... Ng7 {[%clk 0:01:58.3]} 35. Bxg7 {[%clk 0:01:20.7]}
35... Kxg7 {[%clk 0:01:59.2]} 36. Bc4 {[%clk 0:01:21.2]} 36... Rf8 {[%clk
0:01:58.1]} 37. Bd5 {[%clk 0:01:21.6]} 37... Bd8 {[%clk 0:01:58]} 38. e5 {[%clk
0:01:22.1]} 38... Rf5 {[%clk 0:01:57]} 39. Re2 {[%clk 0:01:21.7]} 39... Rg5+
{[%clk 0:01:56.5]} 40. Kf1 {[%clk 0:01:21.1]} 40... Rg3 {[%clk 0:01:56.5]} 41.
e6 {[%clk 0:01:18.8]} 41... Rxh3 {[%clk 0:01:57.4]} 42. e7 {[%clk 0:01:19.1]}
42... Bxe7 {[%clk 0:01:58.3]} 43. Rxe7+ {[%clk 0:01:18.7]} 43... Kf6 {[%clk
0:01:59.2]} 44. d8=Q {[%clk 0:01:18.9]} 44... Kg5 {[%clk 0:02:00.1]} 45. Re5#
{[%clk 0:01:17.8]} 1-0

[Event "*** SCC Grand Prix: Titled Tuesday Blitz"]
[Site "Chess.com"]
[Date "2020.07.07"]
[Round "6"]
[White "albano87"]
[Black "Sacbutt"]
[Result "0-1"]
[WhiteElo "2425"]
[BlackElo "2316"]
[TimeControl "180+1"]
[EndTime "11:03:53 PDT"]
[Termination "Sacbutt won by resignation"]

1. e4 {[%clk 0:03:00]} 1... c5 {[%clk 0:02:59.5]} 2. Nf3 {[%clk 0:02:59.7]} 2...
d6 {[%clk 0:02:59.5]} 3. d4 {[%clk 0:02:50]} 3... cxd4 {[%clk 0:03:00.4]} 4.
Qxd4 {[%clk 0:02:50.2]} 4... a6 {[%clk 0:02:59.5]} 5. c4 {[%clk 0:02:50.2]} 5...
Nc6 {[%clk 0:02:59.1]} 6. Qd2 {[%clk 0:02:50.5]} 6... Nf6 {[%clk 0:02:59.3]} 7.
Nc3 {[%clk 0:02:51.2]} 7... g6 {[%clk 0:02:58.7]} 8. b3 {[%clk 0:02:50.7]} 8...
Bg7 {[%clk 0:02:59.2]} 9. Bb2 {[%clk 0:02:51.4]} 9... Qa5 {[%clk 0:02:55.3]} 10.
Rb1 {[%clk 0:02:49.3]} 10... O-O {[%clk 0:02:39.2]} 11. Be2 {[%clk 0:02:45]}
11... Bg4 {[%clk 0:02:29.7]} 12. h3 {[%clk 0:02:40.3]} 12... Bxf3 {[%clk
0:02:29.4]} 13. Bxf3 {[%clk 0:02:41]} 13... Nd7 {[%clk 0:02:26.6]} 14. Be2
{[%clk 0:02:40.5]} 14... Rfe8 {[%clk 0:02:24.6]} 15. O-O {[%clk 0:02:40.8]}
15... Nc5 {[%clk 0:02:15.7]} 16. Rfd1 {[%clk 0:02:39.7]} 16... Rad8 {[%clk
0:02:11.9]} 17. Bf3 {[%clk 0:02:29.7]} 17... Ne5 {[%clk 0:02:09.1]} 18. Be2
{[%clk 0:02:28.5]} 18... Nc6 {[%clk 0:01:56.7]} 19. f4 {[%clk 0:02:27.7]} 19...
Nd4 {[%clk 0:01:50.5]} 20. Qe3 {[%clk 0:02:20]} 20... Nxe2+ {[%clk 0:01:48.2]}
21. Nxe2 {[%clk 0:02:20.3]} 21... Qxa2 {[%clk 0:01:38.7]} 22. Bxg7 {[%clk
0:02:12.9]} 22... Kxg7 {[%clk 0:01:37.3]} 23. Qc3+ {[%clk 0:02:03.2]} 23... Kg8
{[%clk 0:01:36.6]} 24. Ng3 {[%clk 0:02:03.7]} 24... b5 {[%clk 0:01:21.6]} 25. f5
{[%clk 0:01:40.3]} 25... bxc4 {[%clk 0:01:14.7]} 26. bxc4 {[%clk 0:01:37.2]}
26... Rb8 {[%clk 0:01:12.8]} 27. Ra1 {[%clk 0:01:37.2]} 27... Qb3 {[%clk
0:01:09.2]} 28. Qd4 {[%clk 0:01:37.3]} 28... Qxg3 {[%clk 0:01:07.2]} 0-1

[Event "*** SCC Grand Prix: Titled Tuesday Blitz"]
[Site "Chess.com"]
[Date "2020.07.07"]
[Round "6"]
[White "Usurpov"]
[Black "BabyBoss31"]
[Result "1-0"]
[WhiteElo "2405"]
[BlackElo "2217"]
[TimeControl "180+1"]
[EndTime "11:03:53 PDT"]
[Termination "Usurpov won by resignation"]

1. e4 {[%clk 0:03:00.9]} 1... e6 {[%clk 0:03:00]} 2. d4 {[%clk 0:02:59.5]} 2...
d5 {[%clk 0:03:00.9]} 3. e5 {[%clk 0:02:59.8]} 3... c5 {[%clk 0:03:00.8]} 4. c3
{[%clk 0:03:00.2]} 4... Nc6 {[%clk 0:03:01.3]} 5. Nf3 {[%clk 0:03:00.7]} 5...
Qb6 {[%clk 0:03:00.9]} 6. a3 {[%clk 0:03:00.9]} 6... c4 {[%clk 0:03:00.8]} 7.
Nbd2 {[%clk 0:03:00.1]} 7... Bd7 {[%clk 0:03:01.2]} 8. Be2 {[%clk 0:03:00.1]}
8... Nge7 {[%clk 0:03:00]} 9. Bxc4 {[%clk 0:02:56.7]} 9... O-O-O {[%clk
0:02:11.1]} 10. Bd3 {[%clk 0:02:51.9]} 10... f6 {[%clk 0:02:07.1]} 11. O-O
{[%clk 0:02:40]} 11... h6 {[%clk 0:01:53.5]} 12. b4 {[%clk 0:02:20.8]} 12... f5
{[%clk 0:01:50.2]} 13. a4 {[%clk 0:02:08.9]} 13... g5 {[%clk 0:01:37.9]} 14. a5
{[%clk 0:02:04.1]} 14... Qc7 {[%clk 0:01:38.1]} 15. Nb3 {[%clk 0:01:57.6]} 15...
g4 {[%clk 0:01:30.5]} 16. Ne1 {[%clk 0:01:46]} 16... h5 {[%clk 0:01:27.1]} 17.
b5 {[%clk 0:01:36.5]} 17... Nb8 {[%clk 0:01:25.9]} 18. b6 {[%clk 0:01:24.8]}
18... axb6 {[%clk 0:01:26.8]} 19. axb6 {[%clk 0:01:25.1]} 19... Qxb6 {[%clk
0:01:27.7]} 20. Nc5 {[%clk 0:01:13.3]} 20... Bc6 {[%clk 0:01:26.8]} 21. Bg5
{[%clk 0:00:55.1]} 1-0

[Event "*** SCC Grand Prix: Titled Tuesday Blitz"]
[Site "Chess.com"]
[Date "2020.07.07"]
[Round "6"]
[White "AndrewMaco"]
[Black "tigra"]
[Result "0-1"]
[WhiteElo "2629"]
[BlackElo "2798"]
[TimeControl "180+1"]
[EndTime "11:03:56 PDT"]
[Termination "tigra won on time"]

1. e4 {[%clk 0:02:51.9]} 1... c5 {[%clk 0:02:52.4]} 2. Nf3 {[%clk 0:02:51.5]}
2... d6 {[%clk 0:02:52.1]} 3. d4 {[%clk 0:02:51.2]} 3... cxd4 {[%clk 0:02:53]}
4. Nxd4 {[%clk 0:02:52]} 4... Nf6 {[%clk 0:02:53.7]} 5. Nc3 {[%clk 0:02:52.1]}
5... a6 {[%clk 0:02:54.3]} 6. f3 {[%clk 0:02:52.5]} 6... e5 {[%clk 0:02:49.9]}
7. Nb3 {[%clk 0:02:52.9]} 7... Be6 {[%clk 0:02:50.1]} 8. Be3 {[%clk 0:02:53]}
8... Be7 {[%clk 0:02:49.4]} 9. Qd2 {[%clk 0:02:52]} 9... Nbd7 {[%clk 0:02:47]}
10. O-O-O {[%clk 0:02:50.6]} 10... O-O {[%clk 0:02:45.2]} 11. g4 {[%clk
0:02:50.3]} 11... b5 {[%clk 0:02:44.9]} 12. g5 {[%clk 0:02:47.2]} 12... Nh5
{[%clk 0:02:44.8]} 13. Nd5 {[%clk 0:02:39.2]} 13... Bxd5 {[%clk 0:02:44.9]} 14.
exd5 {[%clk 0:02:38.2]} 14... f6 {[%clk 0:02:45.4]} 15. h4 {[%clk 0:02:19.3]}
15... fxg5 {[%clk 0:02:38.6]} 16. hxg5 {[%clk 0:02:17.5]} 16... Ng3 {[%clk
0:02:38.8]} 17. Bh3 {[%clk 0:01:59.1]} 17... Rxf3 {[%clk 0:02:31.2]} 18. Be6+
{[%clk 0:01:57.8]} 18... Kh8 {[%clk 0:02:31.1]} 19. Rxh7+ {[%clk 0:01:56.1]}
19... Kxh7 {[%clk 0:02:31.1]} 20. g6+ {[%clk 0:01:05]} 20... Kxg6 {[%clk
0:02:28.2]} 21. Rg1 {[%clk 0:01:05.2]} 21... Bg5 {[%clk 0:02:13.4]} 0-1

[Event "*** SCC Grand Prix: Titled Tuesday Blitz"]
[Site "Chess.com"]
[Date "2020.07.07"]
[Round "6"]
[White "pavlitas17"]
[Black "ErikBlomqvist"]
[Result "0-1"]
[WhiteElo "2298"]
[BlackElo "2509"]
[TimeControl "180+1"]
[EndTime "11:03:58 PDT"]
[Termination "ErikBlomqvist won by resignation"]

1. d4 {[%clk 0:03:00.9]} 1... Nf6 {[%clk 0:02:59.6]} 2. c4 {[%clk 0:03:00.4]}
2... e6 {[%clk 0:03:00]} 3. Nf3 {[%clk 0:02:59.7]} 3... Bb4+ {[%clk 0:03:00.5]}
4. Nbd2 {[%clk 0:02:59.1]} 4... O-O {[%clk 0:02:59.9]} 5. a3 {[%clk 0:02:59.3]}
5... Be7 {[%clk 0:03:00]} 6. e4 {[%clk 0:02:59.2]} 6... d6 {[%clk 0:03:00.6]} 7.
Be2 {[%clk 0:02:58.7]} 7... Nfd7 {[%clk 0:03:00.7]} 8. O-O {[%clk 0:02:58.7]}
8... e5 {[%clk 0:03:01]} 9. d5 {[%clk 0:02:57.4]} 9... a5 {[%clk 0:02:59.8]} 10.
Rb1 {[%clk 0:02:56.4]} 10... a4 {[%clk 0:02:56.9]} 11. b4 {[%clk 0:02:53.8]}
11... axb3 {[%clk 0:02:56.6]} 12. Nxb3 {[%clk 0:02:53.8]} 12... Na6 {[%clk
0:02:55.9]} 13. Ne1 {[%clk 0:02:52.3]} 13... Nac5 {[%clk 0:02:56]} 14. Nd3
{[%clk 0:02:51.1]} 14... Nxe4 {[%clk 0:02:54.9]} 15. c5 {[%clk 0:02:46.9]} 15...
Nc3 {[%clk 0:02:54.5]} 16. Qc2 {[%clk 0:02:46.6]} 16... Nxb1 {[%clk 0:02:53.7]}
17. Qxb1 {[%clk 0:02:47.5]} 17... Nxc5 {[%clk 0:02:50.8]} 18. Nbxc5 {[%clk
0:02:47.1]} 18... dxc5 {[%clk 0:02:51.7]} 19. Nxe5 {[%clk 0:02:47.3]} 19... Qxd5
{[%clk 0:02:51.3]} 20. Bb2 {[%clk 0:02:47.6]} 20... Be6 {[%clk 0:02:13.7]} 21.
Rd1 {[%clk 0:02:46.6]} 21... Qa2 {[%clk 0:02:08.3]} 22. Qc1 {[%clk 0:02:41]}
22... Rfd8 {[%clk 0:02:01.1]} 23. Bd3 {[%clk 0:02:40.5]} 23... Bf6 {[%clk
0:01:54.1]} 24. Rd2 {[%clk 0:01:36.5]} 24... Bg5 {[%clk 0:01:46.7]} 25. f4
{[%clk 0:00:57.7]} 25... Bxf4 {[%clk 0:01:44.9]} 26. Bxh7+ {[%clk 0:00:56.2]}
26... Kxh7 {[%clk 0:01:39.4]} 27. Rxd8 {[%clk 0:00:56]} 27... Bxc1 {[%clk
0:01:35.2]} 0-1

[Event "*** SCC Grand Prix: Titled Tuesday Blitz"]
[Site "Chess.com"]
[Date "2020.07.07"]
[Round "6"]
[White "kakakz"]
[Black "TheLawAdv"]
[Result "1-0"]
[WhiteElo "2377"]
[BlackElo "2066"]
[TimeControl "180+1"]
[EndTime "11:04:01 PDT"]
[Termination "kakakz won by resignation"]

1. d4 {[%clk 0:03:00]} 1... d5 {[%clk 0:02:58.2]} 2. Nf3 {[%clk 0:02:59.5]} 2...
e6 {[%clk 0:02:58.3]} 3. g3 {[%clk 0:02:59]} 3... Nf6 {[%clk 0:02:58.5]} 4. Bg2
{[%clk 0:02:59.5]} 4... Bd6 {[%clk 0:02:58.3]} 5. O-O {[%clk 0:03:00]} 5... O-O
{[%clk 0:02:58.2]} 6. c4 {[%clk 0:03:00.5]} 6... c6 {[%clk 0:02:55.4]} 7. Nc3
{[%clk 0:03:00.8]} 7... dxc4 {[%clk 0:02:54.8]} 8. Nd2 {[%clk 0:02:56.2]} 8...
Nbd7 {[%clk 0:02:49.1]} 9. Nxc4 {[%clk 0:02:53.4]} 9... Bc7 {[%clk 0:02:49.4]}
10. b3 {[%clk 0:02:19.9]} 10... e5 {[%clk 0:02:46.8]} 11. Ba3 {[%clk 0:02:07.9]}
11... Re8 {[%clk 0:02:38.2]} 12. Nd6 {[%clk 0:02:02]} 12... Bxd6 {[%clk
0:02:35.3]} 13. Bxd6 {[%clk 0:02:02.9]} 13... exd4 {[%clk 0:02:34.9]} 14. Qxd4
{[%clk 0:02:03.3]} 14... Nf8 {[%clk 0:02:27]} 15. Rfd1 {[%clk 0:01:59.3]} 15...
Be6 {[%clk 0:02:13.1]} 16. e4 {[%clk 0:01:50.7]} 16... Qc8 {[%clk 0:02:03.1]}
17. Rac1 {[%clk 0:01:47.8]} 17... Rd8 {[%clk 0:01:51.7]} 18. Qb4 {[%clk
0:01:46.8]} 18... Bh3 {[%clk 0:01:42.5]} 19. Bh1 {[%clk 0:01:33.7]} 19... b6
{[%clk 0:01:25.9]} 20. e5 {[%clk 0:01:31.6]} 20... Nd5 {[%clk 0:01:20.1]} 21.
Nxd5 {[%clk 0:01:29.1]} 21... c5 {[%clk 0:01:05.1]} 22. Ne7+ {[%clk 0:01:27.9]}
1-0